bitfinex/quotes_ETHUSD_20250223
["timestamp","ask_amount","ask_price","bid_price","bid_amount"]
[1740287568472,0.0540173,2774.0,2773.5,8.10328814]
[1740287569239,0.0540173,2774.0,2773.6,3.60533]
[1740287570683,0.0540173,2774.0,2773.7,0.7945]
[1740287571784,0.0540173,2774.0,2773.9,3.60503]
[1740287571940,0.0540173,2774.0,2773.8,0.439983]
[1740287572144,3.6589773,2774.0,2773.5,5.89786814]
[1740287572443,0.0540173,2774.0,2773.6,3.0]
[1740287572644,0.0540173,2774.0,2773.6,6.60539]
[1740287572841,1.3645,2773.8,2773.0,0.7945]
[1740287573045,0.55,2773.6,2773.1,3.60596]
[1740287573346,0.05520025,2773.5,2773.1,3.60596]
[1740287573682,0.05520025,2773.5,2773.4,3.60568]
[1740287573882,5.24,2773.8,2773.4,0.7945]
[1740287574069,3.66060775,2773.7,2773.2,0.7945]
[1740287574277,3.6055,2773.6,2773.1,3.60606]
[1740287574456,0.05520025,2773.5,2773.1,3.60606]
[1740287574661,0.05520025,2773.5,2773.1,5.06936614]
[1740287574875,0.05520025,2773.5,2773.2,3.60593]
[1740287575074,8.84525,2773.8,2773.2,3.60593]
[1740287575275,0.05523775,2773.7,2773.1,5.06936614]
[1740287575477,3.66059775,2773.7,2773.1,8.67532614]
[1740287575673,3.60542,2773.6,2773.1,5.06932614]
[1740287575845,0.05520025,2773.5,2773.2,3.60592]
[1740287576050,3.60532,2773.7,2773.2,1.24697461]
[1740287576386,0.8096,2773.5,2773.0,4.40069]
[1740287576592,4.41522,2773.5,2773.0,4.40069]
[1740287576888,0.0551815,2773.4,2773.0,4.40069]
[1740287577287,0.0551815,2773.4,2773.0,0.7945]
[1740287577449,3.6608615,2773.4,2772.9,3.60625]
[1740287578088,0.55,2773.3,2772.7,3.60652]
[1740287578389,0.8096,2773.0,2772.5,3.60677]
[1740287578994,0.05458597,2772.9,2772.5,4.31895673]
[1740287579764,0.05458597,2772.9,2772.5,0.71218673]
[1740287580104,3.60664,2772.7,2772.2,4.37003]
[1740287580251,0.8157,2772.5,2772.0,4.37022]
[1740287580455,0.0543409,2772.4,2772.2,3.60719]
[1740287580790,4.42232,2772.7,2772.3,3.60711]
[1740287580791,0.8157,2772.7,2772.3,3.60711]
[1740287581377,5.24,2772.8,2772.7,3.60659]
[1740287581559,5.24,2772.8,2772.7,4.404212]
[1740287581756,5.24,2772.8,2772.7,0.797622]
[1740287581993,5.24,2772.8,2772.4,3.60689]
[1740287582182,5.24,2772.8,2772.5,3.35001035]
[1740287582495,0.8157,2773.8,2772.9,3.60625]
[1740287582803,0.8157,2773.8,2773.5,3.60542]
[1740287583026,0.8157,2773.8,2773.5,7.21089]
[1740287583292,5.24,2773.9,2773.2,0.7628]
[1740287583455,0.8157021,2774.0,2773.6,3.60533]
[1740287583661,4.4206421,2774.0,2773.5,3.60551]
[1740287583891,3.65536677,2773.9,2773.4,3.60559]
[1740287584563,0.05029677,2773.9,2773.4,3.60559]
[1740287584759,0.05029677,2773.9,2773.6,3.6054]
[1740287584996,0.05029677,2773.9,2773.2,0.7628]
[1740287584997,3.6053,2773.7,2773.2,0.7628]
[1740287585196,3.60547,2773.6,2773.0,3.60617]
[1740287585501,3.65624432,2773.6,2773.1,3.60599]
[1740287585677,3.65624432,2773.6,2773.0,3.60617]
[1740287585879,3.60558,2773.5,2773.0,3.60617]
[1740287586197,0.05076682,2773.4,2773.0,5.03863803]
[1740287586495,0.55,2773.6,2773.3,3.60576]
[1740287586687,0.05078557,2773.5,2773.3,3.60576]
[1740287587200,0.05078557,2773.5,2773.4,3.60568]
[1740287587573,0.8157,2773.7,2773.4,3.60568]
[1740287587776,0.05078557,2773.5,2773.4,3.60568]
[1740287587993,0.8157,2773.7,2773.4,3.60568]
[1740287588201,0.05078557,2773.5,2773.4,3.60568]
[1740287588498,0.05079243,2773.5,2773.4,3.60568]
[1740287588704,0.8157,2773.7,2773.4,3.60568]
[1740287588909,0.05081118,2773.6,2773.3,3.60576]
[1740287589116,0.05081118,2773.6,2773.5,3.60555]
[1740287589604,1.3657,2773.9,2773.5,3.60555]
[1740287590199,0.05086932,2773.8,2773.4,3.60566]
[1740287591106,0.05086932,2773.8,2773.3,3.60579]
[1740287591311,3.65611932,2773.8,2773.1,7.21195]
[1740287591521,3.65611932,2773.8,2773.1,8.4526788]
[1740287591810,3.65611932,2773.8,2773.2,3.60593]
[1740287592665,0.05086932,2773.8,2773.3,3.60578]
[1740287593015,0.05086932,2773.8,2773.2,3.60593]
[1740287593574,3.60562,2773.5,2773.0,1.43253803]
[1740287593774,3.60562,2773.5,2772.9,3.60632]
[1740287594002,0.05079431,2773.4,2772.9,3.71914577]
[1740287594897,0.05079431,2773.4,2773.1,3.60599]
[1740287595071,0.55,2773.5,2772.9,0.11282577]
[1740287595370,0.55,2773.5,2773.0,0.11282577]
[1740287595371,3.65650431,2773.4,2773.0,0.11282577]
[1740287596309,0.05079431,2773.4,2773.0,0.11282577]
[1740287597269,0.55,2773.3,2773.0,0.11282577]
[1740287597516,0.8524568,2773.2,2773.0,0.11282577]
[1740287597870,0.8524568,2773.2,2772.5,4.39546]
[1740287597871,4.4584068,2773.2,2772.8,0.11282577]
[1740287598307,0.8524568,2773.2,2772.8,3.71917577]
[1740287598472,0.8524568,2773.2,2772.9,3.60628]
[1740287599699,0.8017,2773.2,2772.9,3.60628]
[1740287599900,0.05055244,2773.1,2772.9,3.60628]
[1740287600213,0.05055244,2773.1,2773.0,3.6062]
[1740287600375,0.05055244,2773.1,2772.8,0.37191758]
[1740287600575,0.05055244,2773.1,2772.9,3.60631]
[1740287600895,5.24,2773.6,2773.0,0.8014]
[1740287600896,6.0047,2773.6,2773.0,0.8014]
[1740287601102,6.0047,2773.6,2773.4,3.60566]
[1740287602111,0.05059309,2773.5,2773.2,3.60581]
[1740287602489,0.05059309,2773.5,2773.0,0.8014]
[1740287602691,0.05059309,2773.5,2773.2,3.60592]
[1740287602926,0.05059309,2773.5,2773.0,0.8014]
[1740287603415,0.05059309,2773.5,2773.2,3.60593]
[1740287605225,0.05059309,2773.5,2773.1,3.60604]
[1740287605397,0.05059309,2773.5,2773.1,7.652724]
[1740287605718,0.05059309,2773.5,2773.1,4.046734]
[1740287606514,0.05059309,2773.5,2773.2,0.11282687]
[1740287609219,0.05059309,2773.5,2773.0,3.71900687]
[1740287609378,0.7647,2773.3,2773.0,0.11282687]
[1740287609981,0.05004976,2773.2,2773.0,0.11282687]
[1740287610419,0.7647,2773.3,2773.0,0.11282687]
[1740287610668,0.05003101,2773.1,2772.8,3.60645]
[1740287610782,0.7647,2773.3,2772.8,4.33904269]
[1740287611132,0.05001225,2773.0,2772.9,3.60633]
[1740287611419,0.7647,2773.3,2772.8,5.16014269]
[1740287611584,0.05001225,2773.0,2772.8,5.16014269]
[1740287611784,0.7647,2773.3,2772.8,5.16014269]
[1740287611992,0.04999349,2772.9,2772.8,5.16014269]
[1740287612184,0.7647,2773.3,2772.9,0.11282687]
[1740287612731,0.7647,2773.3,2772.9,3.71911687]
[1740287613108,5.24,2773.6,2773.5,7.42675]
[1740287613925,2.1e-06,2774.0,2773.9,3.60503]
[1740287614101,2.1e-06,2774.0,2773.9,4.42623]
[1740287615202,2.1e-06,2774.0,2773.9,4.68923]
[1740287615417,2.1e-06,2774.0,2773.9,4.80205687]
[1740287615619,2.1e-06,2774.0,2773.9,5.97777859]
[1740287616945,2.1e-06,2774.0,2773.9,8.97777859]
[1740287617350,2.1e-06,2774.0,2773.9,8.71477859]
[1740287617554,2.1e-06,2774.0,2773.9,0.11282687]
[1740287617718,2.1e-06,2774.0,2773.9,3.71785687]
[1740287617903,2.1e-06,2774.0,2773.9,7.48765687]
[1740287621969,2.1e-06,2774.0,2773.9,7.7628815]
[1740287623354,0.8196,2774.9,2773.9,1.1578515]
[1740287623556,0.8196,2774.9,2774.3,3.60444]
[1740287623742,0.03669402,2774.8,2774.2,3.0]
[1740287623922,0.03669402,2774.8,2774.5,3.60417]
[1740287624231,0.03669402,2774.8,2774.6,3.60401]
[1740287624434,0.03669402,2774.8,2774.5,3.60424]
[1740287624769,0.03669402,2774.8,2774.7,3.60399]
[1740287625060,0.8196,2775.2,2774.7,3.60399]
[1740287625270,0.8196,2775.2,2775.1,3.60347]
[1740287625631,6.0596,2775.6,2775.1,3.60347]
[1740287625961,6.0596,2775.6,2775.2,3.60326]
[1740287626136,6.0596,2775.6,2775.2,4.323926]
[1740287626471,6.0596,2775.6,2775.3,3.6032]
[1740287626663,6.0596,2775.6,2775.4,3.603]
[1740287626868,6.0596,2775.6,2775.3,3.60321]
[1740287627161,6.0596,2775.6,2775.2,0.720666]
[1740287627367,6.0596,2775.6,2775.2,4.323986]
[1740287627667,0.03555608,2775.5,2775.3,0.4323986]
[1740287627853,0.03555608,2775.5,2775.3,4.0355886]
[1740287628172,0.03555608,2775.5,2775.3,0.4323986]
[1740287629680,0.03555608,2775.5,2775.4,3.60308]
[1740287630749,0.03555608,2775.5,2775.3,4.0355986]
[1740287630750,0.03555608,2775.5,2775.3,0.4323986]
[1740287631081,0.4696,2775.4,2775.3,0.4323986]
[1740287631377,0.50564611,2775.4,2775.3,0.4323986]
[1740287631689,0.03604611,2775.4,2775.3,7.8118086]
[1740287631865,5.24,2775.8,2775.3,4.2085986]
[1740287632065,8.84211,2776.2,2775.6,3.60279]
[1740287632381,3.60224,2776.1,2775.6,3.60279]
[1740287632576,0.55,2776.0,2775.4,4.38417486]
[1740287632882,0.03510574,2776.1,2776.0,3.6023]
[1740287633084,8.84149,2776.7,2776.0,3.60223]
[1740287633237,0.1512521,2776.8,2776.1,0.7762]
[1740287633604,3.60175,2776.5,2775.8,3.60256]
[1740287633749,0.55,2776.4,2775.8,3.0]
[1740287633954,0.8196,2776.3,2775.8,3.0]
[1740287634368,4.42162,2776.3,2775.8,3.0]
[1740287634563,3.60245,2775.9,2775.6,0.27659619]
[1740287634749,3.60245,2775.9,2775.2,11.55006353]
[1740287634949,7.20501,2775.9,2775.3,3.0]
[1740287635180,3.60251,2775.9,2775.4,3.60302]
[1740287635869,3.60226,2776.1,2775.3,12.76326353]
[1740287636069,3.6025,2775.9,2775.3,12.76326353]
[1740287636265,3.6025,2775.9,2775.4,6.26432696]
[1740287636581,3.60264,2775.8,2775.4,6.26432696]
[1740287636877,4.94908,2776.0,2775.4,9.86740696]
[1740287637388,4.94901,2776.0,2775.4,3.60308]
[1740287637791,3.60245,2775.9,2775.4,3.60308]
[1740287639092,4.94901,2776.0,2775.3,9.86750696]
[1740287639296,5.24,2776.3,2775.6,3.35001035]
[1740287639480,4.5492221,2776.8,2776.2,3.60201]
[1740287639664,3.60188,2776.4,2775.8,7.20504]
[1740287639877,3.60188,2776.4,2775.8,7.20496]
[1740287640068,3.60195,2776.3,2775.9,6.16930683]
[1740287640268,3.60146,2776.7,2776.1,3.6021]
[1740287640897,0.55,2776.7,2776.1,3.6021]
[1740287641060,3.60173,2776.5,2776.0,4.39842]
[1740287641260,3.60153,2776.6,2776.0,4.39842]
[1740287641261,3.60153,2776.6,2776.0,0.7962]
[1740287641601,3.60179,2776.4,2775.9,6.43773893]
[1740287641785,3.60179,2776.4,2775.9,0.2684321]
[1740287642172,3.60157,2776.6,2776.0,3.60227]
[1740287642563,3.6018,2776.4,2775.9,0.2684321]
[1740287642958,3.6018,2776.4,2775.9,3.8708621]
[1740287643187,3.60157,2776.6,2775.9,6.53260093]
[1740287643386,3.60193,2776.3,2775.9,6.53260093]
[1740287643587,0.55,2776.5,2775.9,10.13502093]
[1740287643791,3.60178,2776.4,2775.9,10.13502093]
[1740287644287,4.5493021,2776.8,2775.9,6.53260093]
[1740287644459,3.60146,2776.7,2776.2,3.60195]
[1740287644966,0.55,2776.6,2776.1,3.60213]
[1740287645274,0.55,2776.6,2776.2,3.60195]
[1740287645491,4.15148,2776.7,2776.2,3.60195]
[1740287645688,0.55,2776.7,2775.9,6.53260093]
[1740287645887,3.60159,2776.6,2776.1,3.60216]
[1740287646202,4.15139,2776.7,2776.1,3.60207]
[1740287646567,3.60153,2776.6,2776.1,3.60207]
[1740287647298,0.55,2776.7,2776.2,3.60195]
[1740287647597,3.60161,2776.6,2776.0,9.50054461]
[1740287647902,3.60185,2776.4,2776.0,5.89833461]
[1740287648238,7.20373,2776.4,2776.0,5.89833461]
[1740287648409,3.60185,2776.4,2776.0,5.89833461]
[1740287649200,0.360185,2776.4,2776.0,5.89833461]
[1740287649379,4.15217,2776.1,2776.0,5.89833461]
[1740287650511,4.90787,2776.1,2776.0,5.89833461]
[1740287650889,0.7557,2776.1,2776.0,5.89833461]
[1740287651188,5.24,2776.2,2776.0,5.89833461]
[1740287651401,8.84206,2776.2,2776.0,5.89833461]
[1740287651726,5.24,2776.2,2776.0,5.89833461]
[1740287651907,0.55,2776.3,2776.0,5.89833461]
[1740287652311,0.55,2776.3,2776.0,9.50063461]
[1740287652521,0.55,2776.3,2776.0,5.89833461]
[1740287652727,3.15188,2776.4,2776.0,5.89833461]
[1740287653280,3.60178,2776.4,2776.0,5.89833461]
[1740287655121,7.95914,2776.5,2776.0,5.89833461]
[1740287655428,0.1512521,2776.8,2776.7,3.60139]
[1740287655909,0.1512521,2776.8,2776.6,4.39431]
[1740287656217,0.1512521,2776.8,2776.7,3.60139]
[1740287659021,0.1512521,2776.8,2776.5,0.7928]
[1740287659179,0.1512521,2776.8,2776.7,4.39419]
[1740287659379,0.1512521,2776.8,2776.6,0.41428103]
[1740287659632,0.1512521,2776.8,2776.4,9.99579191]
[1740287659923,0.1512521,2776.8,2776.4,4.39447]
[1740287660109,0.1512521,2776.8,2776.5,0.11268435]
[1740287660309,0.1512521,2776.8,2776.7,0.26887322]
[1740287668267,3.60152,2776.6,2776.5,5.60132191]
[1740287669509,3.60139,2776.7,2776.0,0.7807]
[1740287669709,3.60204,2776.3,2776.0,0.7807]
[1740287669961,3.60243,2775.9,2775.8,0.7807]
[1740287670125,3.60243,2775.9,2775.7,5.57132191]
[1740287670317,3.60243,2775.9,2775.6,0.7807]
[1740287670920,3.60224,2776.1,2775.6,0.7807]
[1740287671145,3.60232,2776.0,2775.6,0.7807]
[1740287671343,3.60232,2776.0,2775.6,1.954758]
[1740287674050,5.24,2776.6,2775.6,1.954758]
[1740287674051,5.24,2776.6,2775.6,5.30476835]
[1740287674250,4.4082,2776.7,2776.2,4.38268]
[1740287674570,3.60124,2776.9,2776.2,0.7807]
[1740287674769,3.60156,2776.6,2776.2,0.7807]
[1740287674938,6.0467,2777.0,2776.2,0.7807]
[1740287675278,3.6019,2776.4,2776.2,0.7807]
[1740287675443,3.6019,2776.4,2776.0,0.7712]
[1740287676066,3.60207,2776.2,2776.0,0.7712]
[1740287676447,3.60229,2776.1,2775.8,0.11270975]
[1740287676657,0.55,2776.4,2775.8,0.11270975]
[1740287676856,3.60243,2775.9,2775.8,0.11270975]
[1740287677386,3.60231,2776.0,2775.8,0.11270975]
[1740287677869,3.60226,2776.1,2775.8,0.11270975]
[1740287678081,3.60211,2776.2,2775.8,0.11270975]
[1740287678378,3.60211,2776.2,2775.6,3.60269]
[1740287678580,3.6022,2776.1,2775.7,0.76453218]
[1740287679854,3.60193,2776.3,2775.7,0.76453218]
[1740287680054,0.55,2776.4,2775.5,4.04263176]
[1740287680276,0.8308,2776.5,2775.9,3.60243]
[1740287680588,4.43252,2776.5,2776.0,4.35749]
[1740287680748,3.60158,2776.6,2776.0,4.35749]
[1740287680954,3.60158,2776.6,2776.1,3.60209]
[1740287681185,7.20322,2776.6,2776.1,3.60209]
[1740287681489,3.60171,2776.5,2776.0,4.35749]
[1740287681780,3.60158,2776.6,2776.0,0.7552]
[1740287681988,3.60178,2776.4,2776.0,0.7552]
[1740287682189,3.60158,2776.6,2776.0,4.35746]
[1740287682391,3.60173,2776.5,2776.0,0.7552]
[1740287682782,3.60185,2776.4,2776.0,0.7552]
[1740287683093,3.60197,2776.3,2775.8,4.35775]
[1740287683302,3.60197,2776.3,2775.8,5.153785]
[1740287683492,3.60185,2776.4,2775.8,5.153785]
[1740287683668,7.20373,2776.4,2775.8,5.153785]
[1740287683867,3.60185,2776.4,2775.8,5.153785]
[1740287684394,3.60185,2776.4,2775.9,3.60243]
[1740287684569,3.60191,2776.3,2775.8,1.551235]
[1740287684866,3.60191,2776.3,2775.8,5.153715]
[1740287685494,3.60191,2776.3,2775.8,5.2664282]
[1740287686004,3.60163,2776.6,2775.8,5.2664282]
[1740287686154,3.60178,2776.4,2775.8,5.2664282]
[1740287686695,3.60178,2776.4,2775.9,3.60243]
[1740287686895,3.60178,2776.4,2775.8,1.551235]
[1740287687100,3.60178,2776.4,2775.8,5.153795]
[1740287688010,3.60178,2776.4,2775.9,0.11271134]
[1740287690529,3.60187,2776.4,2775.9,0.11271134]
[1740287690832,7.20375,2776.4,2775.9,0.11271134]
[1740287691034,3.60187,2776.4,2775.9,0.11271134]
[1740287691236,3.60192,2776.3,2775.9,0.11271134]
[1740287691735,0.1512521,2776.8,2776.0,1.27845063]
[1740287691938,0.1512521,2776.8,2776.3,3.60179]
[1740287692237,0.1512521,2776.8,2776.3,3.60191]
[1740287692553,3.60139,2776.7,2776.2,3.60191]
[1740287692888,0.1512521,2776.8,2776.0,7.88066063]
[1740287692889,7.20324,2776.6,2776.0,7.88066063]
[1740287693093,3.60141,2776.7,2776.1,3.60215]
[1740287693293,3.60141,2776.7,2776.1,3.60217]
[1740287693907,3.60141,2776.7,2776.2,0.11271134]
[1740287694292,3.60152,2776.6,2776.2,0.11271134]
[1740287694522,3.60139,2776.7,2776.2,0.11271134]
[1740287696135,7.20289,2776.7,2776.2,0.11271134]
[1740287696437,4.38045,2775.5,2774.7,3.6039]
[1740287696601,3.60322,2775.3,2774.7,3.6039]
[1740287696803,4.38045,2775.5,2775.1,3.60343]
[1740287696804,0.7775,2775.5,2775.1,3.60343]
[1740287697164,0.7775,2775.5,2775.0,3.60352]
[1740287697344,0.7775,2775.5,2775.1,3.60346]
[1740287697847,4.38021,2775.7,2775.1,3.60346]
[1740287698451,4.38021,2775.7,2775.0,4.406695]
[1740287698658,3.60283,2775.6,2775.0,4.406695]
[1740287698821,3.60313,2775.4,2774.7,3.6039]
[1740287699035,0.7775,2775.3,2774.7,3.6039]
[1740287699556,4.38071,2775.3,2774.7,3.6039]
[1740287699733,0.7775,2775.3,2774.8,3.60382]
[1740287699939,4.38073,2775.3,2774.7,4.73384188]
[1740287700141,0.7775,2775.3,2774.8,3.60375]
[1740287700345,4.38074,2775.3,2774.8,3.60375]
[1740287700886,4.38072,2775.3,2774.7,4.73390188]
[1740287701357,4.38072,2775.3,2774.7,4.73385188]
[1740287701559,0.7775,2775.3,2774.8,3.60386]
[1740287701861,0.7775,2775.3,2774.9,3.60369]
[1740287702611,0.7775,2775.3,2774.7,3.60399]
[1740287702848,4.40302,2775.6,2775.0,3.60353]
[1740287703362,1.88594478,2778.3,2775.0,3.60353]
[1740287703363,5.24,2776.3,2776.0,3.60227]
[1740287703509,0.524,2776.2,2775.5,0.82]
[1740287703709,4.40253,2776.0,2775.4,3.60301]
[1740287703951,4.40251,2776.0,2775.4,3.60301]
[1740287704509,4.40251,2776.0,2775.2,4.69026]
[1740287704728,3.60265,2775.8,2775.2,1.087]
[1740287705267,3.60243,2775.9,2775.2,4.69033]
[1740287705562,3.6025,2775.9,2775.2,4.69033]
[1740287705760,3.60257,2775.8,2775.2,4.69033]
[1740287707025,3.60312,2775.4,2774.9,0.82]
[1740287707227,3.60312,2775.4,2774.8,3.60384]
[1740287708166,3.60327,2775.3,2774.7,3.82]
[1740287708327,5.24,2775.8,2774.9,0.82]
[1740287708528,5.24,2775.8,2775.4,0.82]
[1740287711467,5.24,2775.8,2775.4,4.42301]
[1740287712891,5.24,2775.8,2775.4,0.82]
[1740287713092,0.8002,2775.9,2775.4,4.42306]
[1740287713266,0.8002,2775.9,2775.4,8.02605]
[1740287713467,0.8002,2775.9,2775.5,3.60291]
[1740287714751,0.8002,2775.9,2775.4,0.82]
[1740287714953,0.8002,2775.9,2775.4,4.42304]
[1740287716597,0.8002,2775.9,2775.1,3.60335]
[1740287716598,1.24045,2775.9,2775.1,3.60335]
[1740287716767,0.7677,2775.7,2774.7,9.81342]
[1740287716968,0.55,2775.6,2774.8,3.60377]
[1740287717184,5.24,2775.7,2775.4,3.60298]
[1740287717383,0.7677,2775.6,2775.0,0.8195]
[1740287717554,0.7677,2775.6,2775.1,3.60347]
[1740287717892,0.7677,2775.6,2775.0,4.42309]
[1740287718099,3.60304,2775.5,2774.8,0.267]
[1740287718279,3.60304,2775.5,2774.8,3.60377]
[1740287718477,3.60295,2775.5,2774.8,3.60377]
[1740287718681,3.60295,2775.5,2774.8,7.20756]
[1740287718853,1.204734,2775.6,2774.7,0.8195]
[1740287719050,0.7677,2775.6,2775.1,3.6034]
[1740287720795,0.7677,2775.6,2775.3,3.60319]
[1740287720993,0.7677,2775.6,2775.0,3.60352]
[1740287721959,4.37059,2775.6,2774.9,3.60363]
[1740287722160,4.37059,2775.6,2774.8,3.60377]
[1740287722390,4.37059,2775.6,2774.8,4.046097]
[1740287722771,4.37059,2775.6,2774.9,3.60373]
[1740287723104,4.37059,2775.6,2775.0,3.60355]
[1740287723305,0.7677,2775.6,2775.0,3.60355]
[1740287724357,4.37061,2775.6,2774.9,7.2074]
[1740287724862,4.37061,2775.6,2774.9,3.60367]
[1740287724863,3.60301,2775.5,2774.9,3.60367]
[1740287725201,4.37053,2775.6,2774.9,3.60367]
[1740287725362,4.37053,2775.6,2774.9,3.60365]
[1740287727883,4.37053,2775.6,2774.9,7.20731]
[1740287728506,4.37053,2775.6,2774.9,3.60365]
[1740287729091,0.7819,2775.4,2774.8,3.60385]
[1740287729295,3.60357,2775.1,2774.4,0.7913]
[1740287729468,4.13191035,2775.3,2774.3,3.60442]
[1740287729469,4.38559,2775.0,2774.3,3.60442]
[1740287729669,3.60374,2774.9,2774.2,3.60451]
[1740287729879,4.38559,2775.0,2774.2,3.60451]
[1740287730086,0.7819,2774.9,2774.2,3.60451]
[1740287730380,0.7819,2774.9,2774.1,6.60474]
[1740287730970,0.55,2774.5,2773.6,7.36]
[1740287731298,0.7819,2774.4,2773.5,0.7913]
[1740287731497,0.7819,2774.4,2773.9,3.60495]
[1740287731817,0.7819,2774.4,2773.9,7.20991]
[1740287732019,0.7819,2774.4,2774.0,3.60488]
[1740287732371,0.7819,2774.4,2773.8,3.60504]
[1740287732613,0.7819,2774.4,2773.8,3.60507]
[1740287732787,0.7819,2774.4,2773.9,3.60503]
[1740287733308,0.08783638,2774.3,2774.0,3.60481]
[1740287733810,0.08783638,2774.3,2773.7,3.6052]
[1740287734018,0.08783638,2774.3,2773.7,4.43259329]
[1740287734316,0.08783638,2774.3,2773.9,3.60496]
[1740287734614,0.08783638,2774.3,2773.8,3.60516]
[1740287735227,0.08783638,2774.3,2773.9,3.60495]
[1740287736023,0.08783638,2774.3,2773.9,3.60503]
[1740287736227,0.08783638,2774.3,2773.8,3.60516]
[1740287736434,0.08783638,2774.3,2774.0,3.60488]
[1740287737025,0.08783638,2774.3,2773.8,3.60516]
[1740287737232,0.08783638,2774.3,2773.8,3.60513]
[1740287737434,0.08783638,2774.3,2773.8,7.21019]
[1740287737990,0.08783638,2774.3,2773.9,3.60502]
[1740287743347,0.08783638,2774.3,2773.8,3.60516]
[1740287743523,0.08783638,2774.3,2773.7,3.60521]
[1740287743701,0.7819,2774.4,2773.7,0.46684329]
[1740287744025,0.08700161,2774.2,2773.9,3.60495]
[1740287744229,0.08701831,2774.3,2773.9,3.60495]
[1740287744557,0.08700161,2774.2,2773.9,3.60495]
[1740287744750,0.7819,2774.4,2773.9,3.60495]
[1740287745134,0.08701831,2774.3,2773.9,3.60495]
[1740287746148,0.08701831,2774.3,2774.0,3.60489]
[1740287747606,0.08701831,2774.3,2774.0,3.60483]
[1740287750175,0.08701831,2774.3,2773.8,3.60514]
[1740287750472,0.08701831,2774.3,2773.9,3.60499]
[1740287751476,0.08701831,2774.3,2773.8,3.60514]
[1740287751643,0.08701831,2774.3,2773.9,1.134314]
[1740287751849,6.0086,2774.9,2774.3,3.60451]
[1740287752176,0.08349128,2774.8,2774.7,3.60386]
[1740287752383,0.08349128,2774.8,2774.7,4.37766]
[1740287752673,0.7686,2775.3,2775.2,3.60334]
[1740287752844,0.7686,2775.6,2775.2,3.60334]
[1740287753049,0.7686,2775.6,2775.1,3.60337]
[1740287753238,0.7686,2775.6,2775.0,7.20713]
[1740287753441,0.7686,2775.6,2775.1,3.60347]
[1740287754176,0.7686,2775.6,2775.0,3.60353]
[1740287754376,0.7686,2775.6,2775.1,3.60346]
[1740287754741,0.0720199,2775.5,2775.0,3.60352]
[1740287754953,0.0720199,2775.5,2775.0,7.20704]
[1740287755269,0.0720199,2775.5,2775.0,3.60352]
[1740287755477,0.0720199,2775.5,2775.1,3.60341]
[1740287757255,0.0720199,2775.5,2775.2,3.60332]
[1740287757457,0.0720199,2775.5,2774.8,3.60376]
[1740287758081,0.831,2775.4,2774.8,3.60376]
[1740287758244,0.71260792,2775.3,2774.8,3.60376]
[1740287758649,0.0724924,2775.2,2774.8,3.60376]
[1740287758947,0.71260792,2775.3,2774.8,3.60376]
[1740287759286,0.71260792,2775.3,2774.4,8.99433]
[1740287759287,0.831,2775.0,2774.4,5.39]
[1740287759487,0.55,2774.8,2774.2,3.60456]
[1740287759987,0.55,2774.8,2774.0,3.60482]
[1740287760145,0.7716,2774.7,2774.2,3.60462]
[1740287760495,0.7716,2774.5,2773.8,3.60514]
[1740287760789,0.7716,2774.4,2773.7,3.60521]
[1740287760943,0.84389701,2774.4,2773.7,3.99340143]
[1740287761149,0.84389701,2774.4,2773.9,3.60499]
[1740287761361,0.84389701,2774.4,2773.9,3.60496]
[1740287761558,0.55,2774.3,2773.7,3.99340143]
[1740287761766,0.62187052,2774.3,2773.7,3.60521]
[1740287761963,0.71976503,2774.0,2773.8,3.60514]
[1740287762189,0.71976503,2774.0,2773.7,3.60517]
[1740287762351,0.07179685,2773.9,2773.7,3.60517]
[1740287762551,0.07179685,2773.9,2773.8,3.60516]
[1740287763288,0.07179685,2773.9,2773.8,4.326193]
[1740287763500,0.07179685,2773.9,2773.8,8.45290335]
[1740287763786,0.7716,2774.7,2773.8,8.45290335]
[1740287763965,0.7716,2774.7,2773.9,3.60493]
[1740287764167,0.06871909,2774.6,2773.9,3.60493]
[1740287764368,0.06871909,2774.6,2774.0,3.60482]
[1740287765477,0.06871909,2774.6,2774.1,3.60474]
[1740287765685,0.06871909,2774.6,2774.2,3.60461]
[1740287765883,0.73802255,2774.3,2774.2,3.60461]
[1740287766104,0.73802255,2774.3,2774.1,3.60469]
[1740287766496,0.06872797,2774.2,2774.1,3.60469]
[1740287766806,0.73802255,2774.3,2774.1,3.60469]
[1740287767011,0.73802255,2774.3,2774.0,3.6049]
[1740287767195,0.06872797,2774.2,2774.0,3.6049]
[1740287767392,0.73802255,2774.3,2774.0,3.6049]
[1740287767693,0.0687486,2774.2,2773.9,3.60501]
[1740287767898,0.7716,2774.2,2773.9,3.60501]
[1740287768412,0.7716,2774.2,2773.7,6.60519]
[1740287768597,0.7716,2774.2,2773.7,10.2104]
[1740287768906,0.06873191,2774.1,2773.6,5.39]
[1740287769112,0.7716,2774.2,2773.5,3.87349463]
[1740287769278,0.7716,2774.2,2773.6,3.60542]
[1740287769488,0.72162789,2773.9,2773.6,3.60542]
[1740287769726,0.72162789,2773.9,2773.6,3.60534]
[1740287769925,0.0686818,2773.8,2773.6,3.60534]
[1740287770146,0.0686818,2773.8,2773.7,3.60529]
[1740287772203,0.0686818,2773.8,2773.2,1.49507959]
[1740287772431,0.7716,2773.7,2773.2,3.60584]
[1740287772843,0.06866218,2773.6,2773.3,3.60581]
[1740287773055,0.7716,2773.7,2773.1,3.60599]
[1740287773250,0.06854918,2773.5,2773.1,3.60599]
[1740287773583,0.06829169,2773.4,2773.1,3.60599]
[1740287773716,0.7716,2773.7,2773.0,3.6061]
[1740287773905,0.7716,2773.7,2773.1,3.60597]
[1740287774151,0.0683251,2773.6,2773.1,3.60597]
[1740287774315,0.0683251,2773.6,2773.1,3.60603]
[1740287774641,0.0683251,2773.6,2773.0,4.38284]
[1740287774857,0.0683251,2773.6,2773.1,3.60599]
[1740287775014,0.0683251,2773.6,2772.9,0.26933768]